[Event "*** Titled Tuesday Blitz"]
[Site "Chess.com"]
[Date "2020.04.14"]
[Round "8"]
[White "zivicd"]
[Black "BillCoe"]
[Result "1-0"]
[WhiteElo "2205"]
[BlackElo "2055"]
[TimeControl "180+1"]
[EndTime "11:29:59 PDT"]
[Termination "zivicd won by resignation"]

1. e4 {[%clk 0:03:00.9]} 1... c5 {[%clk 0:03:00.1]} 2. Nc3 {[%clk 0:03:00.1]}
2... e6 {[%clk 0:03:00.4]} 3. g3 {[%clk 0:02:59.9]} 3... Nc6 {[%clk 0:03:00.7]}
4. Bg2 {[%clk 0:03:00]} 4... g6 {[%clk 0:03:01.2]} 5. d3 {[%clk 0:03:00.2]} 5...
Bg7 {[%clk 0:03:01.6]} 6. Be3 {[%clk 0:03:00]} 6... b6 {[%clk 0:03:01.8]} 7. Qd2
{[%clk 0:02:58.7]} 7... h6 {[%clk 0:02:57.7]} 8. Nge2 {[%clk 0:02:58.2]} 8...
Nge7 {[%clk 0:02:58.2]} 9. d4 {[%clk 0:02:52.4]} 9... cxd4 {[%clk 0:02:52.1]}
10. Nxd4 {[%clk 0:02:52.4]} 10... Nxd4 {[%clk 0:02:40.4]} 11. Bxd4 {[%clk
0:02:52.1]} 11... O-O {[%clk 0:02:37]} 12. Bxg7 {[%clk 0:02:41.6]} 12... Kxg7
{[%clk 0:02:37.9]} 13. e5 {[%clk 0:02:39.9]} 13... Nc6 {[%clk 0:02:22.4]} 14.
O-O {[%clk 0:02:36.3]} 14... Qc7 {[%clk 0:02:21.9]} 15. f4 {[%clk 0:02:35.8]}
15... Rd8 {[%clk 0:02:17.2]} 16. Nb5 {[%clk 0:02:35.6]} 16... Qb8 {[%clk
0:02:15.3]} 17. Nd6 {[%clk 0:02:31.6]} 17... Ba6 {[%clk 0:02:05.6]} 18. c4
{[%clk 0:02:25]} 18... Qc7 {[%clk 0:01:56.5]} 19. b3 {[%clk 0:02:17.4]} 19...
Rab8 {[%clk 0:01:52.2]} 20. Rac1 {[%clk 0:02:16.1]} 20... Ne7 {[%clk 0:01:49]}
21. g4 {[%clk 0:02:10.3]} 21... Nc8 {[%clk 0:01:48.4]} 22. Ne4 {[%clk 0:01:56]}
22... Bb7 {[%clk 0:01:42.6]} 23. Nf6 {[%clk 0:01:52.7]} 23... d6 {[%clk
0:01:30.3]} 24. Qc3 {[%clk 0:01:39.6]} 24... Bxg2 {[%clk 0:01:21.1]} 25. Kxg2
{[%clk 0:01:38.1]} 25... Qc6+ {[%clk 0:01:08.9]} 26. Rf3 {[%clk 0:01:37.6]}
26... Ne7 {[%clk 0:01:05.4]} 27. exd6 {[%clk 0:01:32.8]} 27... Kf8 {[%clk
0:00:53.6]} 28. Nh7+ {[%clk 0:01:08.1]} 28... Kg8 {[%clk 0:00:45.3]} 29. dxe7
{[%clk 0:01:01.5]} 29... Kxh7 {[%clk 0:00:28.6]} 30. exd8=Q {[%clk 0:01:00.9]}
30... Rxd8 {[%clk 0:00:29.5]} 31. Kg3 {[%clk 0:00:58.6]} 31... h5 {[%clk
0:00:26.7]} 32. h3 {[%clk 0:00:51.9]} 32... Qc7 {[%clk 0:00:23.7]} 33. Qe5
{[%clk 0:00:48.6]} 33... Qe7 {[%clk 0:00:18.1]} 34. gxh5 {[%clk 0:00:47]} 34...
f6 {[%clk 0:00:18.5]} 35. hxg6+ {[%clk 0:00:46.1]} 35... Kxg6 {[%clk 0:00:19.4]}
36. Qe4+ {[%clk 0:00:43.7]} 36... Kh6 {[%clk 0:00:17.2]} 37. f5 {[%clk
0:00:42.9]} 37... Rg8+ {[%clk 0:00:16.3]} 38. Kf2 {[%clk 0:00:40.8]} 38... Qc5+
{[%clk 0:00:14.1]} 39. Qe3+ {[%clk 0:00:40.8]} 39... Qxe3+ {[%clk 0:00:10.1]}
40. Kxe3 {[%clk 0:00:40.5]} 40... e5 {[%clk 0:00:10.3]} 41. Rcf1 {[%clk
0:00:38.9]} 41... Rd8 {[%clk 0:00:08.7]} 42. R1f2 {[%clk 0:00:38.4]} 42... Rd4
{[%clk 0:00:07.9]} 43. Rg3 {[%clk 0:00:37.9]} 43... Rd1 {[%clk 0:00:05.9]} 44.
Rg6+ {[%clk 0:00:37.6]} 44... Kh5 {[%clk 0:00:04.3]} 45. Rxf6 {[%clk 0:00:37.4]}
45... Re1+ {[%clk 0:00:04.4]} 46. Kf3 {[%clk 0:00:36.8]} 1-0

[Event "*** Titled Tuesday Blitz"]
[Site "Chess.com"]
[Date "2020.04.14"]
[Round "8"]
[White "Gentlejimmy7"]
[Black "kintoho"]
[Result "1-0"]
[WhiteElo "2649"]
[BlackElo "2454"]
[TimeControl "180+1"]
[EndTime "11:30:02 PDT"]
[Termination "Gentlejimmy7 won by resignation"]

1. d4 {[%clk 0:03:00.9]} 1... g6 {[%clk 0:02:59.4]} 2. g3 {[%clk 0:03:01.8]}
2... Bg7 {[%clk 0:02:59.2]} 3. Bg2 {[%clk 0:03:02.4]} 3... c5 {[%clk 0:02:59.3]}
4. Nf3 {[%clk 0:03:03.3]} 4... cxd4 {[%clk 0:02:59.2]} 5. Nxd4 {[%clk
0:03:04.1]} 5... Nc6 {[%clk 0:02:59.5]} 6. Nxc6 {[%clk 0:03:03.5]} 6... bxc6
{[%clk 0:02:59.8]} 7. c4 {[%clk 0:02:59.9]} 7... Rb8 {[%clk 0:02:58.9]} 8. Nc3
{[%clk 0:02:59]} 8... Bxc3+ {[%clk 0:02:52.2]} 9. bxc3 {[%clk 0:02:57.7]} 9...
Qa5 {[%clk 0:02:52.2]} 10. Qd3 {[%clk 0:02:44]} 10... Nf6 {[%clk 0:02:48.8]} 11.
Bh6 {[%clk 0:02:39.8]} 11... Ba6 {[%clk 0:02:43.7]} 12. O-O {[%clk 0:02:38.2]}
12... Qc5 {[%clk 0:02:42.6]} 13. Rab1 {[%clk 0:02:36]} 13... Rd8 {[%clk
0:02:42.4]} 14. Rb4 {[%clk 0:02:26.8]} 14... d5 {[%clk 0:02:34.3]} 15. Be3
{[%clk 0:02:21.3]} 15... Qd6 {[%clk 0:02:24.7]} 16. c5 {[%clk 0:01:57.6]} 16...
Bxd3 {[%clk 0:02:21]} 17. cxd6 {[%clk 0:01:57.5]} 17... Ba6 {[%clk 0:02:03.3]}
18. dxe7 {[%clk 0:01:42.4]} 18... Kxe7 {[%clk 0:02:03.6]} 19. Bxa7 {[%clk
0:01:38.9]} 19... Nd7 {[%clk 0:01:49.6]} 20. Re1 {[%clk 0:01:31.7]} 20... Rhe8
{[%clk 0:01:45.3]} 21. e4 {[%clk 0:01:30.9]} 21... Kf8 {[%clk 0:01:44.8]} 22.
Re3 {[%clk 0:01:25.4]} 22... c5 {[%clk 0:01:40.2]} 23. Ra4 {[%clk 0:01:21.2]}
23... Bb7 {[%clk 0:01:32.1]} 24. exd5 {[%clk 0:01:18.9]} 24... Rxe3 {[%clk
0:01:22.4]} 25. fxe3 {[%clk 0:01:19.8]} 25... Ke7 {[%clk 0:01:21.6]} 26. d6+
{[%clk 0:01:15.3]} 26... Kxd6 {[%clk 0:01:20]} 27. Bxb7 {[%clk 0:01:15.7]} 27...
Ne5 {[%clk 0:01:16.6]} 28. Kf2 {[%clk 0:01:07.8]} 28... f5 {[%clk 0:01:13.6]}
29. Bf3 {[%clk 0:00:57.3]} 29... Nd3+ {[%clk 0:00:59.2]} 30. Ke2 {[%clk
0:00:54.5]} 30... Ke5 {[%clk 0:00:50.2]} 31. Rd4 {[%clk 0:00:39.4]} 31... Nc1+
{[%clk 0:00:43.6]} 32. Kd2 {[%clk 0:00:38.7]} 32... cxd4 {[%clk 0:00:43.8]} 33.
Bxd4+ {[%clk 0:00:33.9]} 33... Kd6 {[%clk 0:00:42.4]} 34. Kxc1 {[%clk
0:00:34.2]} 34... g5 {[%clk 0:00:39.7]} 35. c4 {[%clk 0:00:33.4]} 35... h5
{[%clk 0:00:40]} 36. c5+ {[%clk 0:00:33.8]} 36... Ke6 {[%clk 0:00:40]} 37. Bxh5
{[%clk 0:00:31]} 37... f4 {[%clk 0:00:35]} 38. Bg4+ {[%clk 0:00:28.9]} 38... Kd5
{[%clk 0:00:34.4]} 39. Bf3+ {[%clk 0:00:28.3]} 39... Kc4 {[%clk 0:00:34.8]} 40.
c6 {[%clk 0:00:26.9]} 40... fxe3 {[%clk 0:00:33.5]} 41. c7 {[%clk 0:00:26.7]}
41... Rc8 {[%clk 0:00:30.7]} 42. Be5 {[%clk 0:00:23.6]} 42... Kd3 {[%clk
0:00:29.2]} 43. Kd1 {[%clk 0:00:21.2]} 43... Re8 {[%clk 0:00:29]} 44. Be2+
{[%clk 0:00:20.9]} 44... Ke4 {[%clk 0:00:28.5]} 45. Ba6 {[%clk 0:00:19.6]} 45...
Kxe5 {[%clk 0:00:26.3]} 46. c8=Q {[%clk 0:00:19.7]} 46... Rxc8 {[%clk
0:00:26.3]} 47. Bxc8 {[%clk 0:00:20.6]} 47... Ke4 {[%clk 0:00:25.9]} 48. Ke2
{[%clk 0:00:20.5]} 48... Kd4 {[%clk 0:00:25.2]} 49. h4 {[%clk 0:00:20.4]} 49...
gxh4 {[%clk 0:00:25.1]} 50. gxh4 {[%clk 0:00:21.3]} 50... Ke4 {[%clk 0:00:25.5]}
51. h5 {[%clk 0:00:21.4]} 51... Ke5 {[%clk 0:00:25.8]} 52. a4 {[%clk 0:00:22.3]}
52... Kf6 {[%clk 0:00:26.2]} 53. a5 {[%clk 0:00:23.2]} 53... Kg5 {[%clk
0:00:26.9]} 54. a6 {[%clk 0:00:24.1]} 54... Kxh5 {[%clk 0:00:27.6]} 55. a7
{[%clk 0:00:25]} 55... Kg5 {[%clk 0:00:28.1]} 56. a8=Q {[%clk 0:00:25.9]} 56...
Kf4 {[%clk 0:00:28.5]} 1-0

[Event "*** Titled Tuesday Blitz"]
[Site "Chess.com"]
[Date "2020.04.14"]
[Round "8"]
[White "blazingbanana"]
[Black "lrestevez"]
[Result "1-0"]
[WhiteElo "2396"]
[BlackElo "2167"]
[TimeControl "180+1"]
[EndTime "11:30:02 PDT"]
[Termination "blazingbanana won on time"]

1. d4 {[%clk 0:03:00]} 1... Nc6 {[%clk 0:02:50.7]} 2. c4 {[%clk 0:02:55.4]} 2...
e5 {[%clk 0:02:47.6]} 3. d5 {[%clk 0:02:54.4]} 3... Nce7 {[%clk 0:02:45.3]} 4.
Nc3 {[%clk 0:02:53.9]} 4... Ng6 {[%clk 0:02:44.9]} 5. e4 {[%clk 0:02:52.2]} 5...
Bc5 {[%clk 0:02:44]} 6. Be3 {[%clk 0:02:50.6]} 6... Bxe3 {[%clk 0:02:42.6]} 7.
fxe3 {[%clk 0:02:51.5]} 7... d6 {[%clk 0:02:41.5]} 8. Qd2 {[%clk 0:02:49.6]}
8... Nf6 {[%clk 0:02:39.3]} 9. O-O-O {[%clk 0:02:46.9]} 9... O-O {[%clk
0:02:33.1]} 10. Nf3 {[%clk 0:02:42.1]} 10... a6 {[%clk 0:02:29.9]} 11. h3 {[%clk
0:02:38]} 11... Bd7 {[%clk 0:02:29.4]} 12. g4 {[%clk 0:02:36.5]} 12... b5 {[%clk
0:02:29]} 13. Bd3 {[%clk 0:02:33.2]} 13... bxc4 {[%clk 0:02:25.6]} 14. Bxc4
{[%clk 0:02:32.6]} 14... Bb5 {[%clk 0:02:24]} 15. Bd3 {[%clk 0:02:26.1]} 15...
Rb8 {[%clk 0:02:19.3]} 16. Rdg1 {[%clk 0:02:20.2]} 16... Bxd3 {[%clk 0:02:18.5]}
17. Qxd3 {[%clk 0:02:19.2]} 17... Nd7 {[%clk 0:02:15.7]} 18. h4 {[%clk
0:02:16.9]} 18... Nc5 {[%clk 0:02:15.2]} 19. Qc2 {[%clk 0:02:16.4]} 19... Qf6
{[%clk 0:02:06.2]} 20. Rf1 {[%clk 0:02:11]} 20... Qd8 {[%clk 0:01:51.3]} 21. h5
{[%clk 0:02:08]} 21... Ne7 {[%clk 0:01:49.6]} 22. g5 {[%clk 0:02:07.7]} 22... c6
{[%clk 0:01:45.4]} 23. Nh4 {[%clk 0:02:01.7]} 23... cxd5 {[%clk 0:01:44]} 24.
exd5 {[%clk 0:01:58.3]} 24... Rc8 {[%clk 0:01:41.4]} 25. g6 {[%clk 0:01:56.2]}
25... e4 {[%clk 0:01:18.7]} 26. gxh7+ {[%clk 0:01:48.4]} 26... Kh8 {[%clk
0:01:12.3]} 27. Rfg1 {[%clk 0:01:42.9]} 27... Nxd5 {[%clk 0:00:56.7]} 28. Kb1
{[%clk 0:01:19.5]} 28... Nxc3+ {[%clk 0:00:50.7]} 29. Qxc3 {[%clk 0:01:16.9]}
29... Ne6 {[%clk 0:00:44.2]} 30. Qd2 {[%clk 0:00:56.6]} 30... Qf6 {[%clk
0:00:23.8]} 31. Rf1 {[%clk 0:00:46]} 31... Qe5 {[%clk 0:00:19.9]} 32. Rf5 {[%clk
0:00:38.5]} 32... Qg3 {[%clk 0:00:19.4]} 33. h6 {[%clk 0:00:34.8]} 33... g6
{[%clk 0:00:17.3]} 34. Rff1 {[%clk 0:00:28.6]} 34... Nc5 {[%clk 0:00:14.6]} 35.
Qd4+ {[%clk 0:00:25.7]} 35... Qe5 {[%clk 0:00:13.8]} 36. Qxe5+ {[%clk
0:00:21.9]} 36... dxe5 {[%clk 0:00:14.7]} 37. Rf6 {[%clk 0:00:21.3]} 37... Kxh7
{[%clk 0:00:12.9]} 38. Rhf1 {[%clk 0:00:16.8]} 38... Nd3 {[%clk 0:00:10.2]} 39.
Nxg6 {[%clk 0:00:14.7]} 39... fxg6 {[%clk 0:00:04.1]} 40. Rxf8 {[%clk
0:00:15.6]} 40... Rc7 {[%clk 0:00:02.4]} 41. Rh1 {[%clk 0:00:13.3]} 41... Rd7
{[%clk 0:00:01.3]} 42. b3 {[%clk 0:00:12.4]} 42... Nf2 {[%clk 0:00:01.5]} 43.
Rxf2 {[%clk 0:00:11.1]} 1-0

[Event "*** Titled Tuesday Blitz"]
[Site "Chess.com"]
[Date "2020.04.14"]
[Round "8"]
[White "eightbyeightchess"]
[Black "jposthuma"]
[Result "0-1"]
[WhiteElo "2400"]
[BlackElo "2589"]
[TimeControl "180+1"]
[EndTime "11:30:03 PDT"]
[Termination "jposthuma won by resignation"]

1. e4 {[%clk 0:02:45]} 1... c6 {[%clk 0:02:59.8]} 2. d4 {[%clk 0:02:44.5]} 2...
d5 {[%clk 0:03:00.7]} 3. e5 {[%clk 0:02:44.7]} 3... c5 {[%clk 0:03:00.8]} 4.
dxc5 {[%clk 0:02:43.2]} 4... Nc6 {[%clk 0:03:01.1]} 5. Bb5 {[%clk 0:02:32.5]}
5... e6 {[%clk 0:03:00.9]} 6. Be3 {[%clk 0:02:29]} 6... Bd7 {[%clk 0:02:58.3]}
7. c3 {[%clk 0:02:23.8]} 7... Nxe5 {[%clk 0:02:55.7]} 8. Bxd7+ {[%clk
0:02:23.5]} 8... Nxd7 {[%clk 0:02:56.6]} 9. b4 {[%clk 0:02:23.6]} 9... g6 {[%clk
0:02:46.1]} 10. Nf3 {[%clk 0:02:20.8]} 10... Bg7 {[%clk 0:02:45.3]} 11. O-O
{[%clk 0:02:21.4]} 11... Ne7 {[%clk 0:02:43.6]} 12. Nbd2 {[%clk 0:02:18.3]}
12... Bxc3 {[%clk 0:02:37.1]} 13. Bd4 {[%clk 0:02:15.9]} 13... Bxa1 {[%clk
0:02:21]} 14. Qxa1 {[%clk 0:02:16.8]} 14... O-O {[%clk 0:02:11.4]} 15. Re1
{[%clk 0:02:06.9]} 15... Nf5 {[%clk 0:02:00.6]} 16. Bb2 {[%clk 0:02:03.8]} 16...
a5 {[%clk 0:01:58.2]} 17. g4 {[%clk 0:01:53.5]} 17... Nh4 {[%clk 0:01:43.3]} 18.
Bg7 {[%clk 0:01:53.1]} 18... Re8 {[%clk 0:01:35.4]} 19. Bh6 {[%clk 0:01:52]}
19... Nxf3+ {[%clk 0:01:34.6]} 20. Nxf3 {[%clk 0:01:52.9]} 20... Qf6 {[%clk
0:01:34.2]} 21. Ne5 {[%clk 0:01:36.8]} 21... Nxe5 {[%clk 0:01:30.7]} 22. Rxe5
{[%clk 0:01:37.7]} 22... axb4 {[%clk 0:01:25.5]} 23. g5 {[%clk 0:01:28.1]} 23...
Rxa2 {[%clk 0:01:17.4]} 24. Qe1 {[%clk 0:01:24.8]} 24... Qf3 {[%clk 0:01:06.5]}
25. Re3 {[%clk 0:01:17.5]} 25... Qg4+ {[%clk 0:01:00.9]} 26. Rg3 {[%clk
0:01:16.9]} 26... Qd4 {[%clk 0:01:00.1]} 27. Kg2 {[%clk 0:01:11.5]} 27... Qe4+
{[%clk 0:00:35.7]} 28. Qxe4 {[%clk 0:01:09.5]} 28... dxe4 {[%clk 0:00:36.6]} 29.
Rb3 {[%clk 0:01:08.9]} 29... Ra4 {[%clk 0:00:28.9]} 30. Re3 {[%clk 0:01:08.7]}
30... f5 {[%clk 0:00:25.5]} 31. gxf6 {[%clk 0:01:07.8]} 31... Kf7 {[%clk
0:00:26]} 32. Rxe4 {[%clk 0:01:07.7]} 32... Kxf6 {[%clk 0:00:22.9]} 33. h4
{[%clk 0:01:04.9]} 33... Rc8 {[%clk 0:00:16.4]} 34. Bd2 {[%clk 0:01:04.3]} 34...
Rxc5 {[%clk 0:00:15.5]} 35. Bxb4 {[%clk 0:01:04]} 35... Rca5 {[%clk 0:00:09.8]}
36. Rf4+ {[%clk 0:00:58.3]} 36... Ke5 {[%clk 0:00:10]} 37. Kg3 {[%clk 0:00:54]}
37... Kd5 {[%clk 0:00:08]} 38. Bxa5 {[%clk 0:00:48.9]} 38... Rxa5 {[%clk
0:00:08.9]} 39. Rf7 {[%clk 0:00:48.8]} 39... Kc6 {[%clk 0:00:07.3]} 40. Rxh7
{[%clk 0:00:48.5]} 40... b5 {[%clk 0:00:06]} 41. Re7 {[%clk 0:00:48.2]} 41...
Kd5 {[%clk 0:00:02.9]} 42. Rb7 {[%clk 0:00:46.8]} 42... Kc4 {[%clk 0:00:02.5]}
43. Rc7+ {[%clk 0:00:45.1]} 43... Kb3 {[%clk 0:00:02.5]} 44. Re7 {[%clk
0:00:43.6]} 44... Ra6 {[%clk 0:00:01.8]} 45. Rb7 {[%clk 0:00:41.7]} 45... b4
{[%clk 0:00:01.8]} 46. Kf4 {[%clk 0:00:41.7]} 46... Kc3 {[%clk 0:00:02]} 47. Kg5
{[%clk 0:00:41.8]} 47... e5 {[%clk 0:00:01.8]} 48. Rb6 {[%clk 0:00:39.4]} 48...
Rxb6 {[%clk 0:00:01.7]} 49. f3 {[%clk 0:00:39.1]} 49... b3 {[%clk 0:00:02.1]}
50. h5 {[%clk 0:00:39]} 50... gxh5 {[%clk 0:00:02.1]} 51. f4 {[%clk 0:00:38.7]}
51... b2 {[%clk 0:00:02.7]} 52. fxe5 {[%clk 0:00:39.6]} 52... b1=Q {[%clk
0:00:03.2]} 53. e6 {[%clk 0:00:40.2]} 53... Qg6+ {[%clk 0:00:03.9]} 54. Kxg6
{[%clk 0:00:40.2]} 54... Rxe6+ {[%clk 0:00:04.7]} 55. Kf7 {[%clk 0:00:41.1]}
55... Re5 {[%clk 0:00:04.4]} 56. Kf6 {[%clk 0:00:40.8]} 56... Rb5 {[%clk
0:00:05.3]} 57. Ke6 {[%clk 0:00:40.3]} 57... Kc4 {[%clk 0:00:06.2]} 58. Kd6
{[%clk 0:00:41.2]} 58... Rd5+ {[%clk 0:00:06.7]} 59. Kc6 {[%clk 0:00:42.1]}
59... h4 {[%clk 0:00:07.3]} 60. Kb6 {[%clk 0:00:42.6]} 60... h3 {[%clk
0:00:08.2]} 61. Kc6 {[%clk 0:00:42.8]} 61... h2 {[%clk 0:00:09.1]} 0-1

[Event "*** Titled Tuesday Blitz"]
[Site "Chess.com"]
[Date "2020.04.14"]
[Round "8"]
[White "Manukyan_Artak"]
[Black "claudyna16"]
[Result "1-0"]
[WhiteElo "2341"]
[BlackElo "2507"]
[TimeControl "180+1"]
[EndTime "11:30:03 PDT"]
[Termination "Manukyan_Artak won by resignation"]

1. e4 {[%clk 0:02:57.7]} 1... e5 {[%clk 0:02:50.3]} 2. Nf3 {[%clk 0:02:56.6]}
2... Nc6 {[%clk 0:02:50.8]} 3. d4 {[%clk 0:02:56.7]} 3... exd4 {[%clk
0:02:50.5]} 4. Nxd4 {[%clk 0:02:57.6]} 4... Nf6 {[%clk 0:02:50.8]} 5. Nxc6
{[%clk 0:02:57.5]} 5... bxc6 {[%clk 0:02:50]} 6. e5 {[%clk 0:02:57.9]} 6... Qe7
{[%clk 0:02:49.3]} 7. Qe2 {[%clk 0:02:58]} 7... Nd5 {[%clk 0:02:49.9]} 8. c4
{[%clk 0:02:58.9]} 8... Ba6 {[%clk 0:02:50.2]} 9. b3 {[%clk 0:02:57]} 9... g6
{[%clk 0:02:49.6]} 10. Bb2 {[%clk 0:02:56.3]} 10... Bg7 {[%clk 0:02:50.2]} 11.
g3 {[%clk 0:02:56.5]} 11... O-O {[%clk 0:02:48.3]} 12. Bg2 {[%clk 0:02:56.5]}
12... Rae8 {[%clk 0:02:47.1]} 13. O-O {[%clk 0:02:56]} 13... Bxe5 {[%clk
0:02:47.5]} 14. Qxe5 {[%clk 0:02:56.5]} 14... Qxe5 {[%clk 0:02:47.6]} 15. Bxe5
{[%clk 0:02:57.4]} 15... Rxe5 {[%clk 0:02:44]} 16. cxd5 {[%clk 0:02:57.6]} 16...
Bxf1 {[%clk 0:02:44.2]} 17. Kxf1 {[%clk 0:02:58.5]} 17... cxd5 {[%clk
0:02:44.8]} 18. Nc3 {[%clk 0:02:58.5]} 18... c6 {[%clk 0:02:45.1]} 19. Rc1
{[%clk 0:02:57.3]} 19... Rfe8 {[%clk 0:02:44.4]} 20. Bf3 {[%clk 0:02:57]} 20...
f5 {[%clk 0:02:40.1]} 21. Na4 {[%clk 0:02:47.1]} 21... Kf7 {[%clk 0:02:38]} 22.
Nc5 {[%clk 0:02:40.1]} 22... Ke7 {[%clk 0:02:30.5]} 23. b4 {[%clk 0:02:39.1]}
23... Kd6 {[%clk 0:02:28.6]} 24. h4 {[%clk 0:02:27.8]} 24... Rb8 {[%clk
0:02:27.7]} 25. Be2 {[%clk 0:02:06.1]} 25... Re7 {[%clk 0:02:18.1]} 26. a3
{[%clk 0:02:01.2]} 26... Ra8 {[%clk 0:02:04.1]} 27. Na6 {[%clk 0:01:54.8]} 27...
Re4 {[%clk 0:01:57.5]} 28. Bd3 {[%clk 0:01:49.9]} 28... Rd4 {[%clk 0:01:52.5]}
29. Ke2 {[%clk 0:01:49.8]} 29... Re8+ {[%clk 0:01:52.3]} 30. Kd2 {[%clk
0:01:50]} 30... f4 {[%clk 0:01:52.7]} 31. Nc5 {[%clk 0:01:44]} 31... fxg3 {[%clk
0:01:45.7]} 32. fxg3 {[%clk 0:01:44.9]} 32... Kc7 {[%clk 0:01:26.3]} 33. Rg1
{[%clk 0:01:36]} 33... d6 {[%clk 0:01:17.8]} 34. Nb3 {[%clk 0:01:35.5]} 34...
Rg4 {[%clk 0:01:17.6]} 35. Nc1 {[%clk 0:01:22.1]} 35... c5 {[%clk 0:01:16.4]}
36. Ne2 {[%clk 0:01:20.3]} 36... c4 {[%clk 0:01:13.6]} 37. Bc2 {[%clk
0:01:20.4]} 37... d4 {[%clk 0:01:10.5]} 38. Nf4 {[%clk 0:01:18.9]} 38... d3
{[%clk 0:01:05.4]} 39. Bd1 {[%clk 0:01:18.6]} 39... Rxf4 {[%clk 0:00:57.6]} 40.
gxf4 {[%clk 0:01:18.2]} 40... d5 {[%clk 0:00:57.9]} 41. Kc3 {[%clk 0:01:15.7]}
41... Kd6 {[%clk 0:00:55.1]} 42. h5 {[%clk 0:01:10.2]} 42... gxh5 {[%clk
0:00:52]} 43. Bxh5 {[%clk 0:01:11.1]} 43... Re4 {[%clk 0:00:42]} 44. Rf1 {[%clk
0:01:09.5]} 44... Ke6 {[%clk 0:00:40.3]} 45. b5 {[%clk 0:01:08.3]} 45... Kf6
{[%clk 0:00:39.1]} 46. a4 {[%clk 0:01:07.4]} 46... Re7 {[%clk 0:00:36.3]} 47.
Bf3 {[%clk 0:01:05.9]} 47... Rd7 {[%clk 0:00:30.7]} 48. a5 {[%clk 0:00:52.4]}
48... Rb7 {[%clk 0:00:20.3]} 49. Rb1 {[%clk 0:00:49.7]} 49... Ke6 {[%clk
0:00:19.9]} 50. Kd4 {[%clk 0:00:49.4]} 50... Rd7 {[%clk 0:00:19.9]} 51. b6
{[%clk 0:00:48.3]} 51... axb6 {[%clk 0:00:19.6]} 52. axb6 {[%clk 0:00:48.5]}
52... Rd8 {[%clk 0:00:20]} 53. b7 {[%clk 0:00:47.6]} 53... Rb8 {[%clk
0:00:19.6]} 54. Bxd5+ {[%clk 0:00:47.4]} 54... Kf5 {[%clk 0:00:20.2]} 55. Kxc4
{[%clk 0:00:44.7]} 55... d2 {[%clk 0:00:20.1]} 56. Rd1 {[%clk 0:00:40.1]} 56...
Kxf4 {[%clk 0:00:20.4]} 57. Rxd2 {[%clk 0:00:40.3]} 1-0

[Event "*** Titled Tuesday Blitz"]
[Site "Chess.com"]
[Date "2020.04.14"]
[Round "8"]
[White "BelaKis"]
[Black "Enriquack"]
[Result "0-1"]
[WhiteElo "2090"]
[BlackElo "2295"]
[TimeControl "180+1"]
[EndTime "11:30:03 PDT"]
[Termination "Enriquack won on time"]

1. Nf3 {[%clk 0:03:00.2]} 1... Nf6 {[%clk 0:02:59.8]} 2. g3 {[%clk 0:02:59.8]}
2... g6 {[%clk 0:03:00.1]} 3. Bg2 {[%clk 0:03:00.5]} 3... Bg7 {[%clk 0:03:00.8]}
4. O-O {[%clk 0:03:00.4]} 4... O-O {[%clk 0:03:01.7]} 5. d3 {[%clk 0:02:56.6]}
5... d6 {[%clk 0:02:59.5]} 6. c4 {[%clk 0:02:54.9]} 6... e5 {[%clk 0:02:58.9]}
7. Nc3 {[%clk 0:02:55.5]} 7... Nc6 {[%clk 0:02:55.3]} 8. Rb1 {[%clk 0:02:55.9]}
8... a5 {[%clk 0:02:51.6]} 9. a3 {[%clk 0:02:56.3]} 9... Bf5 {[%clk 0:02:42.9]}
10. b4 {[%clk 0:02:47.4]} 10... axb4 {[%clk 0:02:39.9]} 11. axb4 {[%clk
0:02:48.3]} 11... Qc8 {[%clk 0:02:11.9]} 12. b5 {[%clk 0:02:46.3]} 12... Ne7
{[%clk 0:01:59.1]} 13. e4 {[%clk 0:02:37.6]} 13... Bg4 {[%clk 0:01:55.4]} 14.
Be3 {[%clk 0:02:18.2]} 14... c6 {[%clk 0:01:51.2]} 15. bxc6 {[%clk 0:02:10.3]}
15... bxc6 {[%clk 0:01:51.2]} 16. Rb6 {[%clk 0:02:10]} 16... d5 {[%clk 0:01:46]}
17. Bc5 {[%clk 0:01:46.8]} 17... Qc7 {[%clk 0:01:02.5]} 18. Qb3 {[%clk
0:01:41.3]} 18... Bxf3 {[%clk 0:00:53.2]} 19. Bxf3 {[%clk 0:01:40.7]} 19... d4
{[%clk 0:00:47.7]} 20. Ne2 {[%clk 0:01:27.4]} 20... Rfb8 {[%clk 0:00:47.4]} 21.
Rb1 {[%clk 0:01:26.8]} 21... Nd7 {[%clk 0:00:46.2]} 22. Qb4 {[%clk 0:00:25.2]}
22... Bf8 {[%clk 0:00:37.6]} 23. Bg4 {[%clk 0:00:16.2]} 23... Nxc5 {[%clk
0:00:34.3]} 24. Rxb8 {[%clk 0:00:15.4]} 24... Nxd3 {[%clk 0:00:29]} 25. Rxa8
{[%clk 0:00:14.2]} 25... Nxb4 {[%clk 0:00:28.8]} 26. Rxb4 {[%clk 0:00:15]} 26...
f5 {[%clk 0:00:22.2]} 27. Bf3 {[%clk 0:00:14]} 27... Kf7 {[%clk 0:00:18.4]} 28.
Rbb8 {[%clk 0:00:13.3]} 28... Bg7 {[%clk 0:00:18.3]} 29. Nc1 {[%clk 0:00:11.6]}
29... Qd6 {[%clk 0:00:15.1]} 30. Nd3 {[%clk 0:00:11.3]} 30... Qe6 {[%clk
0:00:15.7]} 31. c5 {[%clk 0:00:10.7]} 31... Qc4 {[%clk 0:00:15.7]} 32. Be2
{[%clk 0:00:10]} 32... Qc2 {[%clk 0:00:16]} 33. Bf1 {[%clk 0:00:08.8]} 33...
fxe4 {[%clk 0:00:16.5]} 34. Nb4 {[%clk 0:00:08.6]} 34... d3 {[%clk 0:00:16.9]}
35. Rb7 {[%clk 0:00:08.7]} 35... Qxc5 {[%clk 0:00:16.3]} 36. Nxc6 {[%clk
0:00:09.3]} 36... Qxc6 {[%clk 0:00:16.1]} 37. Raa7 {[%clk 0:00:09.8]} 37... Qe6
{[%clk 0:00:15.9]} 38. Rd7 {[%clk 0:00:07.3]} 38... Bf6 {[%clk 0:00:15.9]} 39.
h3 {[%clk 0:00:06.9]} 39... Qf5 {[%clk 0:00:16.2]} 40. Kg2 {[%clk 0:00:07.2]}
40... g5 {[%clk 0:00:16.6]} 41. Kg1 {[%clk 0:00:07.2]} 41... Qf3 {[%clk
0:00:16.9]} 42. Bg2 {[%clk 0:00:06.5]} 42... Qe2 {[%clk 0:00:16.4]} 43. Kh2
{[%clk 0:00:06.8]} 43... d2 {[%clk 0:00:15.3]} 44. g4 {[%clk 0:00:06.4]} 44...
d1=Q {[%clk 0:00:15.1]} 45. Rxe7+ {[%clk 0:00:05.4]} 45... Bxe7 {[%clk
0:00:14.9]} 46. Rxe7+ {[%clk 0:00:03.5]} 46... Kxe7 {[%clk 0:00:15]} 0-1